fUST/lending_fUST_20250605
["ID","MTS","AMOUNT","RATE_DAILY","PERIOD"]
[364493196,1749120654682,-1000.0,0.00022721,2]
[364493198,1749120654691,-1841.71774051,0.00022728,7]
[364493220,1749120654907,-2619.24,0.00022738,2]
[364493222,1749120654918,-907.14,0.00022738,2]
[364493224,1749120654929,-582.8,0.00022739,2]
[364493226,1749120654938,-440.0,0.00022739,2]
[364493228,1749120654948,-440.0,0.00022739,2]
[364493230,1749120654957,-440.0,0.00022739,2]
[364493232,1749120654966,-2371.35,0.00022739,2]
[364493234,1749120654976,-440.0,0.00022739,2]
[364493236,1749120654985,-515.48,0.00022739,2]
[364493238,1749120654995,-440.0,0.00022739,2]
[364493240,1749120655005,-440.0,0.00022739,2]
[364493242,1749120655015,-449.69,0.00022739,2]
[364493245,1749120655026,-290.47,0.00022739,2]
[364493247,1749120655036,-2621.04,0.00022739,2]
[364493249,1749120655045,-440.0,0.00022739,2]
[364493251,1749120655055,-563.4,0.00022739,2]
[364493253,1749120655064,-1603.39,0.00022739,2]
[364493255,1749120655073,-1735.19,0.00022739,2]
[364493257,1749120655083,-440.0,0.00022739,2]
[364493258,1749120655092,-609.58,0.00022739,2]
[364493261,1749120655101,-1074.21,0.00022739,2]
[364493263,1749120655111,-440.0,0.00022739,2]
[364493264,1749120655120,-583.66,0.00022739,2]
[364493267,1749120655130,-1078.73,0.00022739,2]
[364493268,1749120655140,-440.0,0.00022739,2]
[364493270,1749120655149,-440.0,0.00022739,2]
[364493272,1749120655158,-948.08,0.00022739,2]
[364493274,1749120655167,-807.25,0.00022739,2]
[364493276,1749120655177,-440.0,0.00022739,2]
[364493278,1749120655186,-454.64,0.00022739,2]
[364493280,1749120655195,-1149.08,0.00022739,2]
[364493282,1749120655205,-440.0,0.00022739,2]
[364493284,1749120655215,-631.36,0.00022739,2]
[364493286,1749120655224,-1087.02,0.00022739,2]
[364493288,1749120655235,-2091.84,0.00022739,2]
[364493290,1749120655245,-440.0,0.00022739,2]
[364493292,1749120655256,-1507.63,0.00022739,2]
[364493294,1749120655266,-440.0,0.00022739,2]
[364493296,1749120655275,-430.0,0.00022739,2]
[364493298,1749120655285,-414.64,0.00022739,2]
[364493300,1749120655294,-440.0,0.00022739,2]
[364493302,1749120655305,-160.00079428,0.00022767,2]
[364493304,1749120655316,-935.25554074,0.00022787,2]
[364493306,1749120655326,-842.5625,0.000228,7]
[364493308,1749120655336,-12675.11581177,0.000228,7]
[364493310,1749120655346,-2838.53603338,0.00022815,3]
[364493312,1749120655356,-500.0,0.00022872,2]
[364493314,1749120655368,-166.70661549,0.00022884,2]
[364493316,1749120655377,-2699.98,0.000229,7]
[364493318,1749120655388,-3957.36,0.000229,7]
[364493320,1749120655400,-1736.42186868,0.000229,2]
[364493322,1749120655410,-160.00079428,0.00022904,2]
[364493325,1749120655420,-1841.71774051,0.00022969,8]
[364493327,1749120655430,-1000.0,0.00023,23]
[364493328,1749120655439,-272.4,0.00023,2]
[364493330,1749120655449,-7482.56387218,0.00023,2]
[364493332,1749120655458,-2725.67,0.00023,2]
[364493334,1749120655469,-160.0,0.00023,3]
[364493337,1749120655480,-160.0,0.00023,3]
[364493339,1749120655494,-2619.24,0.00023012,2]
[364493341,1749120655503,-907.14,0.00023012,2]
[364493343,1749120655512,-440.0,0.00023013,2]
[364493345,1749120655523,-440.0,0.00023013,2]
[364493347,1749120655533,-345.95897121,0.00023013,2]
[364493349,1749120655542,-2371.35,0.00023013,2]
[364493351,1749120655552,-440.0,0.00023013,2]
[364493353,1749120655561,-515.48,0.00023013,2]
[364493355,1749120655571,-440.0,0.00023013,2]
[364493357,1749120655581,-440.0,0.00023013,2]
[364493359,1749120655590,-449.69,0.00023013,2]
[364493361,1749120655600,-2621.04,0.00023013,2]
[364493363,1749120655609,-440.0,0.00023013,2]
[364493365,1749120655619,-563.4,0.00023013,2]
[364493367,1749120655629,-1603.39,0.00023013,2]
[364493369,1749120655638,-1735.19,0.00023013,2]
[364493371,1749120655648,-609.58,0.00023013,2]
[364493373,1749120655657,-1074.21,0.00023013,2]
[364493374,1749120655667,-440.0,0.00023013,2]
[364493376,1749120655676,-583.66,0.00023013,2]
[364493378,1749120655687,-1078.73,0.00023013,2]
[364493380,1749120655697,-491.04,0.00023013,2]
[364493382,1749120655707,-440.0,0.00023013,2]
[364493384,1749120655717,-948.08,0.00023013,2]
[364493386,1749120655727,-807.25,0.00023013,2]
[364493388,1749120655739,-440.0,0.00023013,2]
[364493390,1749120655748,-454.64,0.00023013,2]
[364493392,1749120655757,-1149.08,0.00023013,2]
[364493394,1749120655767,-440.0,0.00023013,2]
[364493396,1749120655776,-631.36,0.00023013,2]
[364493398,1749120655786,-1087.02,0.00023013,2]
[364493400,1749120655796,-2091.84,0.00023013,2]
[364493402,1749120655806,-440.0,0.00023013,2]
[364493404,1749120655815,-1507.63,0.00023013,2]
[364493406,1749120655825,-440.0,0.00023013,2]
[364493408,1749120655836,-492.96,0.00023013,2]
[364493410,1749120655845,-234.0,0.00023014,7]
[364493412,1749120655855,-935.25554074,0.00023016,2]
[364493414,1749120655864,-500.0,0.00023067,2]
[364493416,1749120655874,-160.00079428,0.00023068,2]
[364493418,1749120655883,-823.0,0.00023141,2]
[364493420,1749120655893,-500.0,0.00023144,2]
[364493422,1749120655904,-500.0,0.00023152,2]
[364493424,1749120655913,-9505.03,0.00023172,2]
[364493426,1749120655922,-157.76505856,0.00023179,2]
[364493428,1749120655933,-24997.58,0.000232,2]
[364493430,1749120655942,-500.0,0.00023202,2]
[364493432,1749120655952,-1841.71774051,0.0002321,8]
[364493434,1749120655961,-935.25554074,0.00023246,2]
[364493436,1749120655971,-223.0315306,0.00023248,2]
[364493438,1749120655979,-505.92166441,0.00023262,2]
[364493440,1749120655989,-503.48503408,0.00023268,2]
[364493442,1749120656000,-2619.24,0.00023286,2]
[364493444,1749120656010,-907.14,0.00023286,2]
[364493446,1749120656020,-245.54,0.00023287,2]
[364493448,1749120656031,-440.0,0.00023287,2]
[364493450,1749120656043,-2371.35,0.00023287,2]
[364493452,1749120656052,-515.48,0.00023287,2]
[364493454,1749120656062,-449.86,0.00023287,2]
[364493456,1749120656073,-440.0,0.00023287,2]
[364493458,1749120656082,-449.69,0.00023287,2]
[364493460,1749120656092,-2621.04,0.00023287,2]
[364493462,1749120656102,-440.0,0.00023287,2]
[364493464,1749120656112,-563.4,0.00023287,2]
[364493466,1749120656121,-1603.39,0.00023287,2]
[364493468,1749120656130,-1735.19,0.00023287,2]
[364493470,1749120656140,-609.58,0.00023287,2]
[364493472,1749120656149,-1074.21,0.00023287,2]
[364493474,1749120656158,-440.0,0.00023287,2]
[364493476,1749120656168,-583.66,0.00023287,2]
[364493478,1749120656178,-1078.73,0.00023287,2]
[364493480,1749120656188,-440.0,0.00023287,2]
[364493482,1749120656197,-948.08,0.00023287,2]
[364493484,1749120656206,-807.25,0.00023287,2]
[364493486,1749120656215,-440.0,0.00023287,2]
[364493488,1749120656224,-454.64,0.00023287,2]
[364493490,1749120656235,-1149.08,0.00023287,2]
[364493492,1749120656245,-440.0,0.00023287,2]
[364493494,1749120656254,-631.36,0.00023287,2]
[364493496,1749120656264,-1087.02,0.00023287,2]
[364493498,1749120656274,-2091.84,0.00023287,2]
[364493500,1749120656284,-440.0,0.00023287,2]
[364493502,1749120656294,-1507.63,0.00023287,2]
[364493504,1749120656306,-440.0,0.00023287,2]
[364493506,1749120656316,-500.0,0.00023305,2]
[364493507,1749120656326,-2200.0,0.00023313,2]
[364493508,1749120656335,-160.0,0.0002335,4]
[364493509,1749120656344,-160.0,0.0002335,5]
[364493510,1749120656355,-160.0,0.0002335,5]
[364493511,1749120656365,-900.0,0.00023356,2]
[364493512,1749120656377,-500.0,0.00023381,2]
[364493513,1749120656388,-500.0,0.00023385,2]
[364493515,1749120656398,-500.0,0.00023386,2]
[364493517,1749120656407,-1841.71774051,0.00023452,9]
[364493519,1749120656416,-935.25554074,0.00023475,2]
[364493521,1749120656425,-504.14560111,0.00023483,2]
[364493523,1749120656435,-500.0,0.00023486,2]
[364493525,1749120656445,-500.0,0.00023489,2]
[364493527,1749120656454,-500.0,0.00023495,2]
[364493529,1749120656464,-500.0,0.00023499,2]
[364493531,1749120656473,-71261.91001035,0.000235,2]
[364493533,1749120656482,-500.0,0.00023504,2]
[364493535,1749120656493,-2619.24,0.0002356,2]
[364493536,1749120656502,-907.14,0.0002356,2]
[364493539,1749120656513,-440.0,0.00023561,2]
[364493541,1749120656523,-2371.35,0.00023561,2]
[364493543,1749120656533,-515.48,0.00023561,2]
[364493545,1749120656543,-293.4,0.00023561,2]
[364493547,1749120656553,-449.69,0.00023561,2]
[364493549,1749120656562,-2621.04,0.00023561,2]
[364493551,1749120656570,-563.4,0.00023561,2]
[364493553,1749120656579,-1603.39,0.00023561,2]
[364493555,1749120656589,-1735.19,0.00023561,2]
[364493557,1749120656598,-609.58,0.00023561,2]
[364493559,1749120656607,-1074.21,0.00023561,2]
[364493560,1749120656616,-440.0,0.00023561,2]
[364493562,1749120656627,-583.66,0.00023561,2]
[364493565,1749120656637,-1078.73,0.00023561,2]
[364493567,1749120656646,-524.27,0.00023561,2]
[364493569,1749120656655,-948.08,0.00023561,2]
[364493571,1749120656664,-807.25,0.00023561,2]
[364493573,1749120656673,-440.0,0.00023561,2]
[364493575,1749120656682,-454.64,0.00023561,2]
[364493577,1749120656691,-1149.08,0.00023561,2]
[364493579,1749120656700,-440.0,0.00023561,2]
[364493581,1749120656709,-631.36,0.00023561,2]
[364493583,1749120656720,-1087.02,0.00023561,2]
[364493585,1749120656729,-2091.84,0.00023561,2]
[364493587,1749120656740,-340.20046884,0.00023561,2]
[364493589,1749120656750,-1507.63,0.00023561,2]
[364493591,1749120656759,-577.73,0.00023561,2]
[364493593,1749120656769,-500.0,0.0002358,2]
[364493595,1749120656779,-500.0,0.00023612,2]
[364493597,1749120656788,-34669.86690303,0.00023613,7]
[364493599,1749120656798,-5000.0,0.00023656,2]
[364493601,1749120656807,-5000.0,0.00023656,2]
[364493603,1749120656817,-5000.0,0.00023656,2]
[364493605,1749120656827,-5000.0,0.00023656,2]
[364493607,1749120656837,-5000.0,0.00023656,2]
[364493609,1749120656849,-5078.31436759,0.00023656,2]
[364493611,1749120656859,-5000.0,0.00023656,2]
[364493613,1749120656868,-5000.0,0.00023656,2]
[364493615,1749120656879,-5000.0,0.00023656,2]
[364493617,1749120656891,-5000.0,0.00023656,2]
[364493619,1749120656902,-1692.55469152,0.0002369,2]
[364493621,1749120656918,-480.79998371,0.0002369,2]
[364493623,1749120656929,-757.0,0.0002369,2]
[364493634,1749120657020,-440.0,0.00018356,2]
[364493647,1749120657134,-440.0,0.00018356,2]
[364493649,1749120657143,-257.63347767,0.00018392,2]
[364493651,1749120657152,-439.71789785,0.0002369,2]
[364493690,1749120657522,-440.0,0.00018356,2]
[364493692,1749120657531,-440.0,0.00018356,2]
[364493694,1749120657541,-440.0,0.0001863,2]
[364493696,1749120657551,-440.0,0.0001863,2]
[364493698,1749120657560,-440.0,0.00018904,2]
[364493700,1749120657569,-33832.06604498,0.0002369,2]
[364493702,1749120657580,-1841.71774051,0.00023693,9]
[364493704,1749120657589,-151.0,0.000237,8]
[364493706,1749120657599,-935.25554074,0.00023704,2]
[364493708,1749120657609,-500.0,0.00023714,2]
[364493710,1749120657618,-500.0,0.0002376,2]
[364493712,1749120657628,-566.5489,0.000238,14]
[364493714,1749120657638,-16362.35204199,0.000238,3]
[364493716,1749120657647,-160.0,0.000238,3]
[364493718,1749120657656,-212.94059491,0.000238,3]
[364493720,1749120657666,-160.0,0.000238,3]
[364493722,1749120657677,-229.48950782,0.000238,3]
[364493724,1749120657687,-842.5625,0.000238,3]
[364493726,1749120657696,-12675.11581177,0.000238,3]
[364493728,1749120657705,-500.0,0.00023816,2]
[364493730,1749120657715,-907.14,0.00023834,2]
[364493732,1749120657726,-440.0,0.00023835,2]
[364493734,1749120657736,-2371.35,0.00023835,2]
[364493736,1749120657745,-515.48,0.00023835,2]
[364493738,1749120657754,-449.69,0.00023835,2]
[364493740,1749120657764,-501.86998342,0.00023835,2]
[364493750,1749120657843,-257.63347767,0.00018528,2]
[364493752,1749120657852,-440.0,0.00019178,2]
[364493753,1749120657862,-440.0,0.00019452,2]
[364493755,1749120657872,-440.0,0.00019726,2]
[364493757,1749120657882,-440.0,0.0002,2]
[364493759,1749120657892,-440.0,0.00020273,2]
[364493761,1749120657901,-440.0,0.00020547,2]
[364493763,1749120657912,-440.0,0.00020821,2]
[364493766,1749120657922,-440.0,0.00021095,2]
[364493768,1749120657932,-440.0,0.00021369,2]
[364493770,1749120657942,-440.0,0.00021643,2]
[364493772,1749120657951,-354.25,0.00021917,2]
[364493774,1749120657961,-2119.17001658,0.00023835,2]
[364493776,1749120657969,-563.4,0.00023835,2]
[364493777,1749120657979,-1603.39,0.00023835,2]
[364493779,1749120657989,-1735.19,0.00023835,2]
[364493781,1749120657998,-609.58,0.00023835,2]
[364493783,1749120658008,-1074.21,0.00023835,2]
[364493785,1749120658017,-440.0,0.00023835,2]
[364493787,1749120658027,-583.66,0.00023835,2]
[364493789,1749120658037,-806.36654413,0.00023835,2]
[364493792,1749120658049,-272.36345587,0.00023835,2]
[364493793,1749120658058,-948.08,0.00023835,2]
[364493796,1749120658068,-686.7376123,0.00023835,2]
[364493798,1749120658080,-120.5123877,0.00023835,2]
[364493800,1749120658089,-440.0,0.00023835,2]
[364493802,1749120658098,-454.64,0.00023835,2]
[364493804,1749120658107,-1149.08,0.00023835,2]
[364493806,1749120658117,-440.0,0.00023835,2]
[364493807,1749120658126,-631.36,0.00023835,2]
[364493809,1749120658135,-1087.02,0.00023835,2]
[364493811,1749120658145,-2091.84,0.00023835,2]
[364493813,1749120658154,-1507.63,0.00023835,2]
[364493815,1749120658164,-935.25554074,0.00023933,2]
[364493817,1749120658174,-1841.71774051,0.00023934,10]
[364493819,1749120658183,-500.0,0.00023967,2]
[364493821,1749120658192,-500.0,0.00023973,2]
[364493823,1749120658201,-500.0,0.00023973,2]
[364493825,1749120658211,-500.0,0.00023973,2]
[364493827,1749120658220,-500.0,0.00023973,2]
[364493829,1749120658230,-305.51292557,0.00023973,2]
[364493831,1749120658239,-500.0,0.00023973,2]
[364493833,1749120658248,-500.0,0.00023973,2]
[364493835,1749120658258,-500.0,0.00023973,2]
[364493837,1749120658267,-500.0,0.00023973,2]
[364493839,1749120658276,-500.0,0.00023973,2]
[364493841,1749120658285,-500.0,0.00023973,2]
[364493843,1749120658294,-790.98,0.00023981,5]
[364493845,1749120658305,-1504.96,0.00023999,7]
[364493847,1749120658315,-2003.3,0.00023999,7]
[364493849,1749120658324,-4572.0,0.00024,2]
[364493850,1749120658333,-4572.0,0.00024,2]
[364493852,1749120658342,-1049.12619934,0.00024,2]
[364493896,1749120658765,436.6041,0.00025,120]
[364495554,1749120796577,1592.0,0.000246,120]
[364495555,1749120817477,1000.0,0.000241,120]
[364495562,1749121403699,246.178392,0.00013699,2]
[364495563,1749121440882,391.5851894,0.00016929,120]
[364495586,1749121832000,-5000.0,0.00016487,2]
[364495587,1749121832011,-1555.37,0.00017108,2]
[364495588,1749121832021,-300.0,0.00017182,2]
[364495589,1749121832030,-300.0,0.00017182,2]
[364495590,1749121832041,-10000.0,0.00017183,2]
[364495591,1749121832051,-254.55750521,0.0001746,2]
[364495592,1749121832060,-274.6430662,0.00017805,2]
[364495593,1749121832070,-904.08757767,0.000179,2]
[364495594,1749121832080,-904.08757754,0.00018141,2]
[364495595,1749121832089,-4869.0,0.00018172,2]
[364495596,1749121832098,-48228.02492982,0.00018256,2]
[364495597,1749121832108,-159.53536825,0.00018256,2]
[364495598,1749121832117,-160.0,0.00018355,2]
[364495599,1749121832127,-500.0,0.00018355,2]
[364495600,1749121832136,-500.0,0.00018355,2]
[364495601,1749121832145,-593.47008148,0.00018355,2]
[364495602,1749121832154,-500.0,0.00018355,2]
[364495603,1749121832163,-500.0,0.00018355,2]
[364495604,1749121832173,-500.0,0.00018355,2]
[364495605,1749121832182,-176.37316151,0.00018355,2]
[364495606,1749121832191,-198.78660839,0.00018355,2]
[364495607,1749121832200,-500.0,0.00018355,2]
[364495608,1749121832210,-500.0,0.00018355,2]
[364495609,1749121832220,-500.0,0.00018355,2]
[364495610,1749121832230,-500.0,0.00018355,2]
[364495611,1749121832239,-500.0,0.00018355,2]
[364495612,1749121832248,-500.0,0.00018355,2]
[364495613,1749121832258,-500.0,0.00018355,2]
[364495614,1749121832269,-557.38585658,0.00018355,2]
[364495615,1749121832279,-500.0,0.00018355,2]
[364495616,1749121832288,-201.54333726,0.00018355,2]
[364495617,1749121832298,-500.0,0.00018355,2]
[364495618,1749121832307,-500.0,0.00018355,2]
[364495619,1749121832316,-401.27644943,0.00018356,2]
[364495620,1749121832326,-257.35692552,0.00018356,2]
[364495621,1749121832337,-440.0,0.00018356,2]
[364495622,1749121832346,-440.0,0.00018356,2]
[364495623,1749121832355,-480.98071536,0.00018356,2]
[364495624,1749121832364,-440.0,0.00018356,2]
[364495625,1749121832373,-440.0,0.00018356,2]
[364495626,1749121832383,-440.0,0.00018356,2]
[364495627,1749121832392,-430.0,0.00018356,2]
[364495628,1749121832401,-430.0,0.00018356,2]
[364495629,1749121832410,-430.84176658,0.00018356,2]
[364495630,1749121832420,-430.0,0.00018356,2]
[364495631,1749121832429,-430.0,0.00018356,2]
[364495632,1749121832438,-430.0,0.00018356,2]
[364495633,1749121832448,-437.47573748,0.00018356,2]
[364495634,1749121832457,-430.0,0.00018356,2]
[364495635,1749121832468,-440.0,0.00018356,2]
[364495636,1749121832478,-430.0,0.00018356,2]
[364495637,1749121832487,-440.0,0.00018356,2]
[364495638,1749121832496,-430.41012353,0.00018356,2]
[364495639,1749121832506,-430.0,0.00018356,2]
[364495640,1749121832515,-445.91798875,0.00018356,2]
[364495641,1749121832524,-430.0,0.00018356,2]
[364495642,1749121832534,-440.0,0.00018356,2]
[364495643,1749121832544,-430.0,0.00018356,2]
[364495644,1749121832554,-470.0,0.00018356,2]
[364495645,1749121832563,-440.0,0.00018356,2]
[364495646,1749121832572,-470.0,0.00018356,2]
[364495647,1749121832581,-440.0,0.00018356,2]
[364495648,1749121832591,-430.0,0.00018356,2]
[364495649,1749121832601,-440.0,0.00018356,2]
[364495650,1749121832610,-440.0,0.00018356,2]
[364495651,1749121832620,-440.0,0.00018356,2]
[364495652,1749121832629,-440.0,0.00018356,2]
[364495653,1749121832639,-430.0,0.00018356,2]
[364495654,1749121832648,-430.0,0.00018356,2]
[364495655,1749121832658,-440.0,0.00018356,2]
[364495656,1749121832668,-510.38329689,0.00018356,2]
[364495657,1749121832678,-450.0,0.00018356,2]
[364495658,1749121832687,-350.0,0.00018356,2]
[364495659,1749121832697,-505.11932332,0.00018356,2]
[364495660,1749121832706,-440.0,0.00018356,2]
[364495661,1749121832717,-430.0,0.00018356,2]
[364495662,1749121832729,-430.0,0.00018356,2]
[364495663,1749121832739,-440.0,0.00018356,2]
[364495664,1749121832748,-440.0,0.00018356,2]
[364495665,1749121832757,-400.66363167,0.00018356,2]
[364495666,1749121832767,-430.0,0.00018356,2]
[364495667,1749121832776,-430.0,0.00018356,2]
[364495668,1749121832786,-430.0,0.00018356,2]
[364495669,1749121832797,-440.0,0.00018356,2]
[364495670,1749121832807,-401.9812149,0.00018356,2]
[364495671,1749121832817,-430.0,0.00018356,2]
[364495672,1749121832826,-430.0,0.00018356,2]
[364495673,1749121832836,-440.0,0.00018356,2]
[364495674,1749121832960,-400.21125402,0.00018356,2]
[364495675,1749121832970,-430.0,0.00018356,2]
[364495676,1749121832979,-430.0,0.00018356,2]
[364495677,1749121832988,-420.0,0.00018356,2]
[364495678,1749121832998,-430.0,0.00018356,2]
[364495679,1749121833007,-244.25041939,0.00018356,2]
[364495680,1749121833016,-430.0,0.00018356,2]
[364495681,1749121833025,-440.0,0.00018356,2]
[364495682,1749121833035,-240.99057526,0.00018356,2]
[364495683,1749121833045,-440.0,0.00018356,2]
[364495684,1749121833055,-440.0,0.00018356,2]
[364495685,1749121833064,-440.0,0.00018356,2]
[364495686,1749121833073,-440.0,0.00018356,2]
[364495687,1749121833083,-430.426035,0.00018356,2]
[364495688,1749121833092,-430.0,0.00018356,2]
[364495689,1749121833102,-440.0,0.00018356,2]
[364495690,1749121833112,-440.0,0.00018356,2]
[364495691,1749121833121,-430.0,0.00018356,2]
[364495692,1749121833131,-430.0,0.00018356,2]
[364495693,1749121833140,-440.0,0.00018356,2]
[364495694,1749121833150,-430.0,0.00018356,2]
[364495695,1749121833159,-440.0,0.00018356,2]
[364495696,1749121833169,-430.0,0.00018356,2]
[364495697,1749121833179,-440.0,0.00018356,2]
[364495698,1749121833188,-404.13586802,0.00018356,2]
[364495699,1749121833197,-440.0,0.00018356,2]
[364495700,1749121833207,-440.0,0.00018356,2]
[364495701,1749121833216,-440.0,0.00018356,2]
[364495702,1749121833226,-430.0,0.00018356,2]
[364495703,1749121833236,-440.0,0.00018356,2]
[364495704,1749121833245,-464.73410924,0.00018356,2]
[364495705,1749121833255,-440.0,0.00018356,2]
[364495706,1749121833264,-400.0,0.00018356,2]
[364495707,1749121833274,-440.0,0.00018356,2]
[364495708,1749121833283,-440.0,0.00018356,2]
[364495709,1749121833293,-400.0,0.00018356,2]
[364495710,1749121833303,-472.56114605,0.00018356,2]
[364495711,1749121833313,-440.0,0.00018356,2]
[364495712,1749121833322,-400.78812976,0.00018356,2]
[364495713,1749121833332,-440.0,0.00018356,2]
[364495714,1749121833342,-430.0,0.00018356,2]
[364495715,1749121833352,-440.0,0.00018356,2]
[364495716,1749121833361,-430.0,0.00018356,2]
[364495717,1749121833371,-420.0,0.00018356,2]
[364495718,1749121833382,-440.0,0.00018356,2]
[364495719,1749121833392,-440.0,0.00018356,2]
[364495720,1749121833402,-440.0,0.00018356,2]
[364495721,1749121833411,-440.0,0.00018356,2]
[364495722,1749121833422,-506.18099845,0.00018356,2]
[364495723,1749121833432,-450.0,0.00018356,2]
[364495724,1749121833443,-440.0,0.00018356,2]
[364495725,1749121833454,-430.0,0.00018356,2]
[364495726,1749121833464,-440.0,0.00018356,2]
[364495727,1749121833473,-440.0,0.00018356,2]
[364495728,1749121833483,-440.0,0.00018356,2]
[364495729,1749121833494,-430.0,0.00018356,2]
[364495730,1749121833505,-440.0,0.00018356,2]
[364495731,1749121833518,-439.95408627,0.00018356,2]
[364495732,1749121833530,-440.0,0.00018356,2]
[364495733,1749121833541,-440.0,0.00018356,2]
[364495734,1749121833551,-440.0,0.00018356,2]
[364495735,1749121833562,-430.0,0.00018356,2]
[364495736,1749121833572,-440.0,0.00018356,2]
[364495737,1749121833582,-440.0,0.00018356,2]
[364495738,1749121833592,-440.0,0.00018356,2]
[364495739,1749121833602,-430.0,0.00018356,2]
[364495740,1749121833612,-430.0,0.00018356,2]
[364495741,1749121833622,-440.0,0.00018356,2]
[364495742,1749121833634,-345.89486169,0.00018356,2]
[364495743,1749121833643,-440.0,0.00018356,2]
[364495744,1749121833654,-430.0,0.00018356,2]
[364495745,1749121833664,-440.0,0.00018356,2]
[364495746,1749121833674,-440.0,0.00018356,2]
[364495747,1749121833685,-440.0,0.00018356,2]
[364495748,1749121833695,-440.0,0.00018356,2]
[364495749,1749121833705,-430.0,0.00018356,2]
[364495750,1749121833716,-430.0,0.00018356,2]
[364495751,1749121833729,-430.0,0.00018356,2]
[364495752,1749121833739,-430.0,0.00018356,2]
[364495753,1749121833749,-444.11085541,0.00018356,2]
[364495754,1749121833759,-440.0,0.00018356,2]
[364495755,1749121833770,-440.0,0.00018356,2]
[364495756,1749121833779,-460.0,0.00018356,2]
[364495757,1749121833790,-430.0,0.00018356,2]
[364495758,1749121833801,-430.0,0.00018356,2]
[364495759,1749121833811,-440.0,0.00018356,2]
[364495760,1749121833821,-440.0,0.00018356,2]
[364495761,1749121833831,-430.0,0.00018356,2]
[364495762,1749121833841,-440.0,0.00018356,2]
[364495763,1749121833851,-440.0,0.00018356,2]
[364495764,1749121833861,-440.0,0.00018356,2]
[364495765,1749121833871,-380.01960629,0.00018356,2]
[364495766,1749121833882,-440.0,0.00018356,2]
[364495767,1749121833891,-440.0,0.00018356,2]
[364495768,1749121833902,-440.0,0.00018356,2]
[364495769,1749121833912,-440.0,0.00018356,2]
[364495770,1749121833922,-440.0,0.00018356,2]
[364495771,1749121833931,-440.0,0.00018356,2]
[364495772,1749121833942,-440.0,0.00018356,2]
[364495773,1749121833952,-440.0,0.00018356,2]
[364495774,1749121833962,-500.0,0.00018356,2]
[364495775,1749121833971,-500.0,0.00018356,2]
[364495776,1749121833980,-500.0,0.00018356,2]
[364495777,1749121833990,-500.0,0.00018356,2]
[364495778,1749121833999,-500.0,0.00018356,2]
[364495779,1749121834009,-440.0,0.00018356,2]
[364495780,1749121834018,-158.91657375,0.00018356,2]
[364495781,1749121834027,-440.0,0.00018356,2]
[364495782,1749121834037,-440.0,0.00018356,2]
[364495783,1749121834047,-430.0,0.00018356,2]
[364495784,1749121834058,-440.0,0.00018356,2]
[364495785,1749121834068,-434.46200891,0.00018356,2]
[364495786,1749121834077,-440.0,0.00018356,2]
[364495787,1749121834087,-440.0,0.00018356,2]
[364495788,1749121834096,-430.0,0.00018356,2]
[364495789,1749121834106,-430.0,0.00018356,2]